bitfinex/quotes_SOLUSD_20230102
["timestamp","ask_amount","ask_price","bid_price","bid_amount"]
[1672662992441,30.0,11.166,11.163,9.91119906]
[1672662992651,67.25,11.167,11.161,154.11323239]
[1672662992866,97.24,11.168,11.161,154.11323239]
[1672662995381,30.0,11.167,11.154,67.33]
[1672662995586,30.0,11.167,11.162,11.75694429]
[1672662996009,30.0,11.165,11.162,11.75694429]
[1672662996527,30.0,11.165,11.155,67.32]
[1672662996735,30.0,11.165,11.151,67.35]
[1672662996949,30.0,11.165,11.153,30.0]
[1672662997154,30.0,11.165,11.154,67.33]
[1672663000115,20.0,11.164,11.154,67.33]
[1672663000324,30.0,11.163,11.154,67.33]
[1672663000537,20.0,11.162,11.154,90.604]
[1672663001163,20.0,11.162,11.154,23.274]
[1672663001998,20.0,11.162,11.155,67.32]
[1672663004960,20.0,11.162,11.154,90.604]
[1672663005364,50.0,11.162,11.154,23.274]
[1672663005896,50.0,11.162,11.155,67.32]
[1672663006096,50.0,11.162,11.154,90.604]
[1672663008006,50.0,11.162,11.154,23.274]
[1672663008217,50.0,11.162,11.155,67.32]
[1672663009157,20.0,11.162,11.154,90.604]
[1672663009562,24.9889,11.163,11.154,90.604]
[1672663009776,97.25,11.167,11.154,90.604]
[1672663010092,97.25,11.167,11.155,165.442]
[1672663010298,97.25,11.167,11.156,67.32]
[1672663010509,97.25,11.167,11.156,90.152]
[1672663011163,97.25,11.167,11.157,22.832]
[1672663018830,97.25,11.167,11.156,24.2738]
[1672663019024,106.65962551,11.166,11.156,24.2738]
[1672663019230,97.26,11.165,11.156,24.2738]
[1672663020705,97.26,11.165,11.156,47.3609]
[1672663023555,67.26,11.165,11.156,47.3609]
[1672663023877,67.26,11.166,11.156,47.3609]
[1672663024183,67.26,11.166,11.157,24.9551]
[1672663025445,30.0,11.165,11.157,24.9551]
[1672663025656,67.27,11.164,11.157,24.9551]
[1672663026806,30.0,11.163,11.157,24.9551]
[1672663027423,67.27,11.164,11.157,24.9551]
[1672663029839,30.0,11.163,11.157,24.9551]
[1672663030052,67.28,11.162,11.157,24.9551]
[1672663030998,30.0,11.163,11.157,24.9551]
[1672663032070,67.27,11.164,11.157,24.9551]
[1672663035013,67.26,11.166,11.157,24.9551]
[1672663037516,67.24,11.169,11.158,30.0]
[1672663037725,67.24,11.169,11.159,23.6061]
[1672663038364,30.0,11.168,11.159,23.6061]
[1672663038583,30.0,11.166,11.159,23.6061]
[1672663038784,67.26,11.165,11.159,23.6061]
[1672663038980,30.0,11.166,11.159,23.6061]
[1672663039531,67.25,11.167,11.159,23.6061]
[1672663040681,30.0,11.166,11.159,23.6061]
[1672663040892,67.26,11.165,11.159,23.6061]
[1672663042787,67.24,11.168,11.159,23.6061]
[1672663044360,30.0,11.167,11.159,23.6061]
[1672663044550,67.26,11.166,11.159,23.6061]
[1672663047810,67.24,11.168,11.159,23.6061]
[1672663048034,30.0,11.167,11.159,23.6061]
[1672663048243,67.26,11.166,11.159,23.6061]
[1672663049618,57.26,11.166,11.159,23.6061]
[1672663049810,30.0,11.167,11.159,23.6061]
[1672663050022,67.26,11.166,11.159,23.6061]
[1672663053291,66.76,11.166,11.159,23.6061]
[1672663063069,30.0,11.167,11.159,23.6061]
[1672663063266,67.26,11.166,11.159,23.6061]
[1672663063995,30.0,11.165,11.159,23.6061]
[1672663064208,67.27,11.164,11.159,23.6061]
[1672663065888,30.0,11.165,11.159,23.6061]
[1672663066417,67.27,11.164,11.159,23.6061]
[1672663067590,57.27,11.164,11.159,23.6061]
[1672663068427,30.0,11.165,11.159,23.6061]
[1672663068639,67.27,11.164,11.159,23.6061]
[1672663070000,67.26,11.166,11.159,23.6061]
[1672663071679,30.0,11.165,11.159,23.6061]
[1672663071890,67.27,11.164,11.159,23.6061]
[1672663074122,30.0,11.165,11.159,23.6061]
[1672663074336,67.27,11.164,11.159,23.6061]
[1672663078293,67.26,11.166,11.159,23.6061]
[1672663079148,30.0,11.165,11.159,23.6061]
[1672663079340,67.27,11.164,11.159,23.6061]
[1672663080523,30.0,11.165,11.159,23.6061]
[1672663080726,67.26,11.166,11.159,23.6061]
[1672663082529,67.24,11.169,11.159,23.6061]
[1672663082714,67.24,11.169,11.16,23.3855]
[1672663083767,30.0,11.168,11.16,23.3855]
[1672663084305,67.24,11.169,11.16,23.3855]
[1672663084515,67.24,11.169,11.161,30.0]
[1672663085130,67.24,11.169,11.16,53.3855]
[1672663085556,67.24,11.169,11.16,23.3855]
[1672663089962,30.0,11.168,11.16,23.3855]
[1672663090179,30.0,11.166,11.16,23.3855]
[1672663090387,67.26,11.165,11.16,23.3855]
[1672663091029,67.25,11.167,11.16,23.3855]
[1672663091223,67.24,11.168,11.16,23.3855]
[1672663095541,30.0,11.167,11.16,23.3855]
[1672663095863,30.0,11.165,11.16,23.3855]
[1672663096600,67.27,11.164,11.16,23.3855]
[1672663096917,30.0,11.165,11.16,23.3855]
[1672663100049,67.26,11.166,11.16,23.3855]
[1672663100259,30.0,11.167,11.16,23.3855]
[1672663100486,30.0,11.165,11.16,23.3855]
[1672663100703,67.27,11.164,11.16,23.3855]
[1672663101013,67.26,11.166,11.16,23.3855]
[1672663101228,67.26,11.166,11.159,133.8311]
[1672663104797,67.24,11.168,11.159,133.8311]
[1672663105112,97.24,11.169,11.159,158.2387]
[1672663114769,97.24,11.169,11.16,67.29]
[1672663114979,91.5239,11.17,11.159,158.2387]
[1672663115190,20.0,11.169,11.16,67.29]
[1672663115410,50.0,11.169,11.16,90.1732]
[1672663115624,117.24,11.169,11.16,90.1732]
[1672663115939,50.0,11.169,11.16,90.1732]
[1672663116362,20.0,11.169,11.16,90.1732]
[1672663117508,87.24,11.169,11.16,90.1732]
[1672663117716,87.24,11.169,11.16,22.8832]
[1672663117928,30.0,11.168,11.16,22.8832]
[1672663118347,67.25,11.167,11.16,22.8832]
[1672663118567,97.24,11.168,11.16,22.8832]
[1672663121299,30.0,11.168,11.16,22.8832]
[1672663122040,97.24,11.168,11.16,22.8832]
[1672663125106,67.24,11.168,11.16,22.8832]
[1672663128547,30.0,11.167,11.16,22.8832]
[1672663133496,97.24,11.168,11.16,22.8832]
[1672663133716,67.24,11.168,11.16,22.8832]
[1672663137590,66.78288,11.168,11.16,22.8832]
[1672663140546,30.0,11.167,11.16,22.8832]
[1672663142435,67.26,11.166,11.16,22.8832]
[1672663143182,30.0,11.167,11.16,22.8832]
[1672663143489,67.24,11.168,11.16,22.8832]
[1672663144220,30.0,11.167,11.16,22.8832]
[1672663146140,67.26,11.166,11.16,22.8832]
[1672663146440,30.0,11.167,11.16,22.8832]
[1672663146960,20.0,11.169,11.161,30.0]
[1672663147367,20.0,11.169,11.162,67.28]
[1672663147903,20.0,11.169,11.161,120.2441]
[1672663148318,20.0,11.169,11.161,196.74197878]
[1672663148528,20.0,11.169,11.161,166.74197878]
[1672663149064,20.0,11.169,11.162,30.0]
[1672663149482,20.0,11.169,11.161,166.74197878]
[1672663149700,20.0,11.169,11.161,99.45197878]
[1672663149887,67.24,11.168,11.161,22.9541]
[1672663150412,87.24,11.169,11.161,22.9541]
[1672663151690,20.0,11.169,11.162,30.0]
[1672663151896,127.1771367,11.18,11.163,270.0]
[1672663151897,35.863542,11.178,11.163,270.0]
[1672663152115,35.863542,11.178,11.17,9.15]
[1672663152302,35.863542,11.178,11.172,30.0]
[1672663152512,35.863542,11.178,11.173,67.21]
[1672663152738,0.0071367,11.18,11.178,35.863542]
[1672663152952,0.0071367,11.18,11.179,97.18]
[1672663153352,89.5862791,11.19,11.18,30.0]
[1672663153560,89.5862791,11.19,11.181,67.17]
[1672663154198,89.5862791,11.19,11.182,30.0]
[1672663154530,82.0862791,11.19,11.184,30.0]
[1672663154728,82.0862791,11.19,11.183,67.15]
[1672663154931,0.0062791,11.199,11.183,67.15]
[1672663155150,205.95468404,11.216,11.192,81.91737554]
[1672663155363,205.95468404,11.216,11.193,84.54382]
[1672663155684,90.11417487,11.228,11.194,306.49235]
[1672663155897,66.89,11.227,11.21,9.09]
[1672663156111,45.75,11.23,11.201,67.05]
[1672663156303,30.0,11.228,11.205,15.80730786]
[1672663156513,66.89,11.227,11.206,67.02]
[1672663156724,9.1,11.22,11.201,67.05]
[1672663156942,66.94,11.219,11.202,20.0]
[1672663157155,66.94,11.219,11.203,67.03]
[1672663157363,30.0,11.218,11.202,67.04]
[1672663157569,9.15,11.21,11.201,30.0]
[1672663157783,30.0,11.208,11.197,67.07]
[1672663157994,87.01,11.207,11.196,23.4983]
[1672663158314,30.0,11.206,11.196,23.4983]
[1672663158525,87.02,11.205,11.196,23.4983]
[1672663158739,30.0,11.204,11.196,23.4983]
[1672663159051,87.03,11.203,11.196,23.4983]
[1672663159263,30.0,11.202,11.183,30.0]
[1672663159576,30.0,11.199,11.181,30.0]
[1672663159890,67.06,11.198,11.18,217.36130933]
[1672663160083,50.0,11.197,11.18,150.19130933]
[1672663160299,67.08,11.196,11.18,217.36130933]
[1672663160504,30.0,11.194,11.18,217.36130933]
[1672663160720,87.09,11.193,11.18,150.19130933]
[1672663161047,87.09,11.193,11.18,30.0]
[1672663161462,87.09,11.193,11.177,67.19]
[1672663161661,67.09,11.193,11.181,157.59769843]
[1672663161875,67.07,11.197,11.183,30.0]
[1672663162085,67.06,11.198,11.183,30.0]
[1672663162507,30.0,11.197,11.183,30.0]
[1672663162712,30.0,11.195,11.184,112.097]
[1672663162922,67.09,11.194,11.184,112.097]
[1672663163765,67.09,11.194,11.192,0.00737554]
[1672663163974,50.0,11.193,11.192,0.00737554]
[1672663164194,117.09,11.193,11.192,0.00737554]
[1672663167247,30.0,11.209,11.192,0.00737554]
[1672663167248,67.08,11.196,11.192,0.00737554]
[1672663167463,67.06,11.198,11.192,0.00737554]
[1672663167659,67.06,11.199,11.192,0.00737554]
[1672663167863,30.0,11.198,11.192,0.00737554]
[1672663168077,67.07,11.197,11.192,0.00737554]
[1672663168296,30.0,11.196,11.192,0.00737554]
[1672663168513,30.0,11.194,11.192,0.00737554]
[1672663168705,67.09,11.193,11.192,0.00737554]
[1672663168923,87.09,11.193,11.192,0.00737554]
[1672663172387,93.34388652,11.193,11.192,0.00737554]
[1672663173239,87.09,11.193,11.192,0.00737554]
[1672663174603,93.34388652,11.193,11.192,0.00737554]
[1672663175032,30.0,11.192,11.179,113.6462]
[1672663175228,30.0,11.189,11.175,67.2]
[1672663175436,30.0,11.189,11.172,67.22]
[1672663175437,87.12,11.188,11.172,67.22]
[1672663175646,93.37388652,11.188,11.172,67.22]
[1672663175858,6.25388652,11.187,11.171,24.004]
[1672663176081,9.06,11.18,11.171,24.004]
[1672663176297,87.18,11.179,11.171,24.004]
[1672663176938,20.0,11.179,11.168,30.0]
[1672663177250,20.0,11.179,11.17,30.0]
[1672663177572,67.18,11.178,11.17,30.0]
[1672663177978,87.18,11.179,11.17,30.0]
[1672663178191,87.18,11.179,11.168,30.0]
[1672663182495,30.0,11.178,11.168,30.0]
[1672663182704,67.19,11.177,11.168,30.0]
[1672663183243,67.18,11.178,11.168,30.0]
[1672663185639,30.0,11.177,11.168,30.0]
[1672663185869,67.2,11.176,11.168,30.0]
[1672663189226,30.0,11.177,11.168,30.0]
[1672663189419,67.2,11.176,11.168,30.0]
[1672663191119,67.18,11.178,11.168,30.0]
[1672663191862,30.0,11.177,11.168,30.0]
[1672663192049,67.2,11.176,11.168,30.0]
[1672663193414,67.2,11.176,11.167,112.7369]
[1672663194896,67.18,11.178,11.167,112.7369]
[1672663198478,20.0,11.177,11.161,23.8101]
[1672663198687,67.2,11.176,11.163,30.0]
[1672663198884,67.2,11.176,11.161,23.8101]
[1672663198885,30.0,11.174,11.161,23.8101]
[1672663199099,87.21,11.173,11.161,23.8101]
[1672663199412,30.0,11.172,11.161,23.8101]
[1672663199625,87.23,11.171,11.158,30.0]
[1672663199840,30.0,11.17,11.158,30.0]
[1672663200053,9.16,11.18,11.16,9.04]
[1672663200249,136.1687,11.179,11.162,262.2]
[1672663200461,30.0,11.178,11.164,30.0]
[1672663200674,67.19,11.177,11.165,67.26]
[1672663201318,73.44388652,11.177,11.162,67.28]
[1672663201516,29.0,11.176,11.161,67.69849472]
[1672663201730,30.0,11.174,11.162,0.40845812]
[1672663201938,67.21,11.173,11.161,67.29]
[1672663202279,30.0,11.172,11.161,67.29]
[1672663202579,87.23,11.171,11.161,67.29]
[1672663202788,203.3987,11.171,11.16,90.6557]
[1672663202985,203.3987,11.171,11.161,0.40849472]
[1672663203198,203.3987,11.171,11.161,0.40845812]
[1672663203199,30.0,11.17,11.161,0.40845812]
[1672663203409,20.0,11.169,11.161,0.40845812]
[1672663204994,50.0,11.169,11.161,0.40845812]
[1672663205195,20.0,11.169,11.161,0.40845812]
[1672663205413,87.24,11.169,11.161,0.40845812]
[1672663205726,20.0,11.169,11.161,30.40845812]
[1672663205948,20.0,11.169,11.161,0.40845812]
[1672663207415,87.24,11.169,11.16,23.3657]
[1672663207816,116.7355,11.17,11.16,32.4457]
[1672663208023,66.4,11.19,11.161,117.29]
[1672663208229,157.981,11.18,11.161,234.3402]
[1672663208455,30.0,11.176,11.161,234.3402]
[1672663208669,67.2,11.175,11.161,234.3402]
[1672663209416,67.19,11.177,11.161,250.14750786]
[1672663209613,67.19,11.177,11.163,30.0]
[1672663209943,67.19,11.177,11.164,67.27]
[1672663210248,30.0,11.176,11.164,67.27]
[1672663210461,67.2,11.175,11.164,67.27]
[1672663210781,67.2,11.175,11.163,97.27]
[1672663211181,67.2,11.175,11.163,67.27]
[1672663212659,30.0,11.174,11.163,67.27]
[1672663212874,67.21,11.173,11.162,118.251]
[1672663213274,30.0,11.172,11.16,70.209]
[1672663213489,30.0,11.17,11.16,70.209]
[1672663213702,87.24,11.169,11.16,23.3657]
[1672663214536,30.0,11.168,11.16,23.3657]
[1672663215080,200.3129,11.169,11.158,67.3]
[1672663215608,30.0,11.168,11.158,67.3]
[1672663215813,67.25,11.167,11.157,116.6362]
[1672663216435,67.24,11.168,11.157,116.6362]
[1672663216657,67.24,11.168,11.158,30.0]
[1672663217906,67.24,11.168,11.157,116.6362]
[1672663218110,30.0,11.167,11.157,116.6362]
[1672663218331,67.26,11.166,11.155,67.32]
[1672663219057,30.0,11.165,11.155,67.32]
[1672663219267,67.27,11.164,11.154,48.6123]
[1672663219493,67.27,11.164,11.153,24.9927]
[1672663220125,67.27,11.164,11.153,40.80000786]
[1672663220443,67.27,11.164,11.153,24.9927]
[1672663221165,67.27,11.164,11.154,67.33]
[1672663221687,67.27,11.164,11.153,24.9927]
[1672663223585,50.0,11.163,11.151,67.35]
[1672663223906,30.0,11.161,11.15,76.38]
[1672663224113,87.29,11.16,11.15,76.38]
[1672663224305,20.0,11.16,11.151,30.0]
[1672663224517,20.0,11.16,11.151,28.0]
[1672663224736,20.0,11.16,11.15,106.38]
[1672663225156,67.27,11.164,11.15,76.38]
[1672663225365,26.25388652,11.163,11.151,15.80730786]
[1672663225580,30.0,11.161,11.149,48.3447]
[1672663225901,87.29,11.16,11.149,48.3447]
[1672663226302,30.0,11.159,11.149,48.3447]
[1672663226741,30.0,11.157,11.149,48.3447]
[1672663226936,30.0,11.157,11.148,24.4306]
[1672663227880,178.7237,11.158,11.148,24.4306]
[1672663228089,111.4237,11.158,11.149,67.36]
[1672663228527,111.4237,11.158,11.148,24.4306]
[1672663228741,111.4237,11.158,11.149,67.36]
[1672663230536,111.4237,11.158,11.148,24.4306]
[1672663231075,97.31,11.157,11.148,24.4306]
[1672663233463,197.07137312,11.157,11.148,24.4306]
[1672663233792,197.07137312,11.157,11.149,12.90816868]
[1672663234511,167.07137312,11.157,11.149,12.90816868]
[1672663235239,30.0,11.156,11.149,12.90816868]
[1672663235453,30.0,11.154,11.149,12.90816868]
[1672663235683,67.33,11.153,11.149,12.90816868]
[1672663235897,30.0,11.152,11.149,12.90816868]
[1672663236090,87.35,11.151,11.149,12.90816868]
[1672663236512,30.0,11.15,11.149,12.90816868]
[1672663236723,117.35,11.15,11.138,97.42]
[1672663236929,87.36,11.149,11.139,30.0]
[1672663237143,87.36,11.149,11.138,97.42]
[1672663237373,201.9718,11.149,11.138,97.42]
[1672663237578,201.9718,11.149,11.138,67.42]
[1672663237794,201.9718,11.149,11.139,13.03543769]
[1672663242188,134.6118,11.149,11.14,17.0]
[1672663242396,134.6118,11.149,11.141,30.0]
[1672663242625,114.6118,11.149,11.141,30.0]
[1672663242826,114.6118,11.149,11.143,30.0]
[1672663243241,67.32,11.156,11.142,67.4]
[1672663243458,67.32,11.156,11.141,30.0]
[1672663243459,30.0,11.155,11.143,20.0]
[1672663243669,67.33,11.154,11.143,20.0]
[1672663243873,30.0,11.153,11.141,67.41]
[1672663244091,87.34,11.152,11.142,0.40919045]
[1672663244293,30.0,11.151,11.14,80.4327005]
[1672663244506,87.35,11.15,11.14,13.0227005]
[1672663245039,206.4356,11.15,11.14,80.4327005]
[1672663245228,67.33,11.153,11.142,30.0]
[1672663245562,30.0,11.154,11.143,84.39]
[1672663245771,67.33,11.153,11.144,0.40911701]
[1672663245968,67.33,11.153,11.144,0.4090803]
[1672663246174,30.0,11.154,11.144,0.4090803]
[1672663246395,67.33,11.153,11.144,0.4090803]
[1672663246599,67.33,11.153,11.145,12.95904888]
[1672663246805,67.32,11.155,11.145,12.95904888]
[1672663249559,141.1809,11.156,11.146,67.38]
[1672663249758,141.1809,11.156,11.147,30.0]
[1672663249963,141.1809,11.156,11.148,67.36]
[1672663250174,117.5494,11.156,11.146,67.38]
[1672663250613,117.5494,11.156,11.149,12.90816868]
[1672663251643,117.5494,11.156,11.147,67.37]
[1672663251861,67.3,11.159,11.15,9.1]
[1672663252066,20.0,11.158,11.15,9.1]
[1672663252716,20.0,11.16,11.15,9.1]
[1672663253022,67.3,11.159,11.15,9.1]
[1672663253234,67.28,11.162,11.151,30.0]
[1672663253549,67.26,11.165,11.151,67.35]
[1672663253750,30.0,11.164,11.15,9.1]
[1672663253960,30.0,11.162,11.15,9.1]
[1672663254293,67.29,11.161,11.15,9.1]
[1672663254704,179.8172,11.161,11.151,12.88274227]
[1672663254925,20.0,11.16,11.151,12.88274227]
[1672663255136,67.3,11.159,11.151,12.88274227]
[1672663255463,20.0,11.158,11.151,12.88274227]
[1672663256075,87.3,11.158,11.151,12.88274227]
[1672663256500,20.0,11.158,11.151,12.88274227]
[1672663257654,20.0,11.158,11.148,115.4862]
[1672663257966,20.0,11.158,11.149,30.0]
[1672663258386,67.29,11.161,11.151,30.0]
[1672663258592,67.27,11.164,11.153,30.0]
[1672663258806,67.26,11.165,11.153,30.0]
[1672663259249,67.26,11.165,11.152,164.3374]
[1672663259446,67.26,11.165,11.153,30.0]
[1672663260404,67.26,11.165,11.152,164.3374]
[1672663260588,67.26,11.165,11.152,134.3374]
[1672663260800,30.0,11.164,11.152,134.3374]
[1672663261025,67.27,11.163,11.152,134.3374]
[1672663262183,30.0,11.162,11.152,134.3374]
[1672663262378,67.29,11.161,11.152,134.3374]
[1672663263218,67.27,11.163,11.152,134.3374]
[1672663263856,67.27,11.163,11.153,30.0]
[1672663264077,67.26,11.165,11.153,30.0]
[1672663264693,30.0,11.164,11.152,134.3374]
[1672663265006,67.27,11.163,11.154,30.0]
[1672663265328,67.26,11.165,11.154,30.0]
[1672663267314,67.26,11.165,11.154,97.33]
[1672663267528,67.26,11.165,11.154,67.33]
[1672663267846,67.26,11.165,11.153,30.0]
[1672663269833,67.26,11.165,11.154,12.84461976]
[1672663284398,67.26,11.165,11.155,17.0]
[1672663284917,67.26,11.165,11.156,30.0]
[1672663285741,67.26,11.165,11.157,12.80651774]
[1672663286489,108.5493,11.166,11.158,30.0]
[1672663287220,108.5493,11.166,11.157,80.11651774]
[1672663290691,108.5493,11.166,11.158,30.0]
[1672663291750,108.5493,11.166,11.159,12.78112778]
[1672663292696,67.26,11.165,11.155,259.7513]
[1672663293221,67.26,11.165,11.155,192.4313]
[1672663293975,67.26,11.165,11.155,162.4313]
[1672663295647,67.26,11.165,11.156,12.81921613]
[1672663297006,67.26,11.165,11.157,30.0]
[1672663297855,67.26,11.165,11.156,12.81921613]
[1672663300880,30.0,11.164,11.156,12.81921613]
[1672663301109,30.0,11.162,11.156,12.81921613]
[1672663301301,67.29,11.161,11.156,12.81921613]
[1672663301511,30.0,11.159,11.156,12.81921613]
[1672663301721,87.3,11.158,11.147,67.37]
[1672663301931,200.3487,11.158,11.147,67.37]
[1672663302141,200.3487,11.158,11.145,67.38]
[1672663302351,109.8027,11.157,11.146,30.0]
[1672663302784,109.8027,11.157,11.148,12.92088531]
[1672663304263,67.32,11.156,11.148,12.92088531]
[1672663304466,97.32,11.156,11.148,12.92088531]
[1672663304678,97.32,11.156,11.145,46.8851]
[1672663304894,30.0,11.155,11.145,46.8851]
[1672663305104,67.33,11.154,11.145,46.8851]
[1672663305529,67.33,11.154,11.146,30.0]
[1672663305848,67.32,11.155,11.146,12.9463254]
[1672663311411,30.0,11.154,11.146,12.9463254]
[1672663311619,30.0,11.152,11.146,12.9463254]
[1672663311943,67.35,11.151,11.146,12.9463254]
[1672663312660,67.33,11.153,11.144,23.2651]
[1672663313603,67.33,11.153,11.145,12.95904888]
[1672663318224,67.32,11.155,11.145,12.95904888]
[1672663319691,30.0,11.154,11.145,12.95904888]
[1672663319906,67.33,11.153,11.145,12.95904888]
[1672663321716,67.32,11.155,11.145,12.95904888]
[1672663323918,30.0,11.154,11.145,12.95904888]
[1672663324126,67.33,11.153,11.145,12.95904888]
[1672663327475,67.33,11.154,11.145,12.95904888]
[1672663330967,97.32,11.155,11.145,12.95904888]
[1672663331175,30.0,11.154,11.145,12.95904888]
[1672663331370,67.33,11.153,11.145,12.95904888]
[1672663332221,67.33,11.154,11.145,12.95904888]
[1672663335782,30.0,11.154,11.145,12.95904888]
[1672663335992,67.33,11.153,11.145,12.95904888]
[1672663337056,67.33,11.154,11.145,12.95904888]
[1672663337995,67.32,11.155,11.145,12.95904888]
[1672663340423,9.1,11.15,11.145,12.95904888]
[1672663340637,87.36,11.149,11.141,12.95273289]
[1672663344825,87.36,11.149,11.139,61.60074962]
[1672663345560,87.36,11.149,11.14,30.0]
[1672663346309,87.36,11.149,11.139,61.60074962]
[1672663346619,87.36,11.149,11.139,48.5971]
[1672663348706,87.36,11.149,11.14,13.01638452]
[1672663350079,30.0,11.148,11.14,13.01638452]
[1672663350404,67.37,11.147,11.14,13.01638452]
[1672663352712,30.0,11.146,11.14,13.01638452]
[1672663352919,30.0,11.144,11.14,13.01638452]
[1672663353120,67.39,11.143,11.14,13.01638452]
[1672663353538,20.0,11.142,11.14,13.01638452]
[1672663353751,67.41,11.141,11.136,10.8234554]
[1672663353958,30.0,11.139,11.136,10.8234554]
[1672663354285,67.42,11.138,11.136,10.8234554]
[1672663355106,67.42,11.139,11.136,10.8234554]
[1672663355540,50.0,11.138,11.136,10.8234554]
[1672663355731,67.43,11.137,11.136,10.8234554]
[1672663357757,30.0,11.136,11.133,2598.24683807]
[1672663357970,67.44,11.135,11.133,2598.24683807]
[1672663358484,67.43,11.137,11.133,2598.24683807]
[1672663359953,30.0,11.136,11.133,2598.24683807]
[1672663360158,67.44,11.135,11.133,2598.24683807]
[1672663361628,67.44,11.135,11.133,10.87421881]
[1672663361843,67.43,11.137,11.133,10.87421881]
[1672663362271,87.42,11.138,11.133,10.87421881]
[1672663362798,87.42,11.138,11.129,1632.98768394]
[1672663363540,20.0,11.138,11.131,30.0]
[1672663363717,67.41,11.141,11.131,30.0]
[1672663363931,67.38,11.146,11.133,30.0]
[1672663364270,67.38,11.146,11.135,30.0]
[1672663366461,67.38,11.146,11.134,1672.61521926]
[1672663366673,67.38,11.146,11.137,30.0]
[1672663366879,67.38,11.146,11.136,10.87421881]
[1672663367727,67.38,11.146,11.135,1605.16521926]
[1672663368466,30.0,11.145,11.135,1605.16521926]
[1672663368676,67.39,11.144,11.135,1605.16521926]
[1672663369004,97.38,11.145,11.135,1605.16521926]
[1672663369428,67.38,11.145,11.135,1605.16521926]
[1672663370777,67.38,11.145,11.136,10.87421881]
[1672663371216,97.38,11.146,11.136,10.87421881]
[1672663377083,67.38,11.146,11.136,10.87421881]
[1672663381314,97.38,11.146,11.136,10.87421881]
[1672663382779,30.0,11.145,11.136,10.87421881]
[1672663382971,30.0,11.143,11.136,10.87421881]
[1672663383183,67.4,11.142,11.136,10.87421881]
[1672663384548,67.39,11.144,11.136,10.87421881]
[1672663385599,30.0,11.143,11.136,10.87421881]
[1672663385934,67.4,11.142,11.136,10.87421881]
[1672663386985,67.39,11.144,11.136,10.87421881]
[1672663388221,30.0,11.145,11.136,10.87421881]
[1672663388433,67.39,11.144,11.136,10.87421881]
[1672663390351,67.38,11.146,11.136,10.87421881]
[1672663392349,97.38,11.146,11.136,10.87421881]
[1672663392882,30.0,11.145,11.136,10.87421881]
[1672663393068,67.39,11.144,11.136,10.87421881]
[1672663393813,67.38,11.146,11.136,10.87421881]
[1672663394879,30.0,11.145,11.136,10.87421881]
[1672663395070,30.0,11.143,11.136,10.87421881]